[Event "January 9 Early 2024"]
[Site "https://www.chess.com"]
[Date "2024.01.11"]
[Round "9"]
[White "Laddha, Shubh Jayesh"]
[Black "Jovic, Stanoje"]
[Result "1-0"]
[Board "103"]
[TimeControl "180+1"]
[WhiteFideId "30942799"]
[BlackFideId "905020"]
[WhiteElo "2568"]
[BlackElo "2423"]
[WhiteTeam "USA"]
[BlackTeam "SRB"]
[WhiteClock "0:00:25"]
[BlackClock "0:00:37"]

1. d4 {[%clk 0:03:00]}  Nf6 {[%clk 0:02:59]} 2. Nc3 {[%clk 0:03:01]}  d5 {[%clk 0:02:58]} 3. Bf4 {[%clk 0:03:02]}  e6 {[%clk 0:02:58]} 4. Nb5 {[%clk 0:03:01]}  Bd6 {[%clk 0:02:58]} 5. Nxd6+ {[%clk 0:03:02]}  cxd6 {[%clk 0:02:59]} 6. e3 {[%clk 0:03:02]}  O-O {[%clk 0:02:59]} 7. Nf3 {[%clk 0:03:03]}  Nc6 {[%clk 0:02:59]} 8. c3 {[%clk 0:03:01]}  Re8 {[%clk 0:02:58]} 9. h3 {[%clk 0:03:01]}  e5 {[%clk 0:02:59]} 10. Bh2 {[%clk 0:03:02]}  Bf5 {[%clk 0:02:57]} 11. Be2 {[%clk 0:02:59]}  h6 {[%clk 0:02:56]} 12. O-O {[%clk 0:02:56]}  a6 {[%clk 0:02:55]} 13. Qb3 {[%clk 0:02:55]}  b5 {[%clk 0:02:53]} 14. a4 {[%clk 0:02:52]}  Na5 {[%clk 0:02:46]} 15. Qa2 {[%clk 0:02:36]}  Nc4 {[%clk 0:02:33]} 16. b3 {[%clk 0:02:26]}  Nb6 {[%clk 0:02:29]} 17. dxe5 {[%clk 0:02:24]}  Ne4 {[%clk 0:02:17]} 18. Rfc1 {[%clk 0:02:11]}  dxe5 {[%clk 0:02:16]} 19. Bxe5 {[%clk 0:02:09]}  Ng5 {[%clk 0:01:50]} 20. Bd4 {[%clk 0:02:06]}  Nxf3+ {[%clk 0:01:44]} 21. Bxf3 {[%clk 0:02:06]}  Be4 {[%clk 0:01:40]} 22. Bxe4 {[%clk 0:01:58]}  dxe4 {[%clk 0:01:41]} 23. Rd1 {[%clk 0:01:36]}  Qc7 {[%clk 0:01:32]} 24. axb5 {[%clk 0:01:25]}  axb5 {[%clk 0:01:32]} 25. Bxb6 {[%clk 0:01:25]}  Qxb6 {[%clk 0:01:30]} 26. Qxa8 {[%clk 0:01:25]}  Rxa8 {[%clk 0:01:29]} 27. Rxa8+ {[%clk 0:01:25]}  Kh7 {[%clk 0:01:29]} 28. Rd7 {[%clk 0:01:26]}  Qe6 {[%clk 0:01:23]} 29. Raa7 {[%clk 0:01:24]}  Qxb3 {[%clk 0:01:21]} 30. Rac7 {[%clk 0:01:21]}  Kg6 {[%clk 0:01:16]} 31. Rxf7 {[%clk 0:01:13]}  Qxf7 {[%clk 0:01:07]} 32. Rxf7 {[%clk 0:01:14]}  Kxf7 {[%clk 0:01:07]} 33. g4 {[%clk 0:01:12]}  Ke6 {[%clk 0:01:07]} 34. f3 {[%clk 0:00:44]}  Kd5 {[%clk 0:00:54]} 35. Kf2 {[%clk 0:00:39]}  exf3 {[%clk 0:00:47]} 36. Kxf3 {[%clk 0:00:39]}  Kc4 {[%clk 0:00:47]} 37. e4 {[%clk 0:00:39]}  g5 {[%clk 0:00:38]} 38. Ke3 {[%clk 0:00:19]}  Kxc3 {[%clk 0:00:36]} 39. e5 {[%clk 0:00:20]}  b4 {[%clk 0:00:37]} 40. e6 {[%clk 0:00:21]}  b3 {[%clk 0:00:37]} 41. e7 {[%clk 0:00:22]}  b2 {[%clk 0:00:38]} 42. e8=Q {[%clk 0:00:22]}  b1=Q {[%clk 0:00:38]} 43. Qc8+ {[%clk 0:00:23]}  Kb2 {[%clk 0:00:37]} 44. Qb8+ {[%clk 0:00:24]}  Kc1 {[%clk 0:00:37]} 45. Qxb1+ {[%clk 0:00:25]}  Kxb1 {[%clk 0:00:37]} 46. Ke4 {[%clk 0:00:25]} 1-0

[Event "January 9 Early 2024"]
[Site "https://www.chess.com"]
[Date "2024.01.11"]
[Round "9"]
[White "Goncalves, Samuel Jesus P"]
[Black "Feliz Dotel, Dewar Bienvenido"]
[Result "1-0"]
[Board "104"]
[TimeControl "180+1"]
[WhiteFideId "1945130"]
[BlackFideId "6402801"]
[WhiteElo "2417"]
[BlackElo "2158"]
[WhiteTeam "POR"]
[BlackTeam "DOM"]
[WhiteClock "0:00:22"]
[BlackClock "0:00:01"]

1. e4 {[%clk 0:03:00]}  c5 {[%clk 0:02:58]} 2. Nf3 {[%clk 0:03:00]}  g6 {[%clk 0:02:58]} 3. Bc4 {[%clk 0:03:00]}  Bg7 {[%clk 0:02:54]} 4. O-O {[%clk 0:02:59]}  Nc6 {[%clk 0:02:53]} 5. c3 {[%clk 0:02:59]}  d6 {[%clk 0:02:52]} 6. d3 {[%clk 0:02:55]}  Nf6 {[%clk 0:02:51]} 7. Re1 {[%clk 0:02:55]}  O-O {[%clk 0:02:51]} 8. h3 {[%clk 0:02:55]}  d5 {[%clk 0:02:50]} 9. exd5 {[%clk 0:02:54]}  Nxd5 {[%clk 0:02:50]} 10. a4 {[%clk 0:02:45]}  b6 {[%clk 0:02:41]} 11. Bg5 {[%clk 0:02:23]}  Be6 {[%clk 0:02:35]} 12. Nbd2 {[%clk 0:02:13]}  h6 {[%clk 0:02:30]} 13. Bh4 {[%clk 0:02:13]}  Na5 {[%clk 0:02:10]} 14. Ba2 {[%clk 0:01:58]}  Nf4 {[%clk 0:02:02]} 15. Bxe6 {[%clk 0:01:57]}  Nxe6 {[%clk 0:02:02]} 16. Qc2 {[%clk 0:01:32]}  Nc6 {[%clk 0:01:45]} 17. Bg3 {[%clk 0:01:28]}  g5 {[%clk 0:01:30]} 18. Nc4 {[%clk 0:01:27]}  Nf4 {[%clk 0:01:25]} 19. Rad1 {[%clk 0:01:26]}  Rc8 {[%clk 0:01:10]} 20. h4 {[%clk 0:01:25]}  e6 {[%clk 0:00:53]} 21. Qd2 {[%clk 0:01:06]}  Qf6 {[%clk 0:00:23]} 22. Nd6 {[%clk 0:00:55]}  Rcd8 {[%clk 0:00:21]} 23. Ne4 {[%clk 0:00:55]}  Qg6 {[%clk 0:00:14]} 24. hxg5 {[%clk 0:00:54]}  Nh5 {[%clk 0:00:11]} 25. Bh4 {[%clk 0:00:46]}  Rd5 {[%clk 0:00:10]} 26. g4 {[%clk 0:00:32]}  hxg5 {[%clk 0:00:07]} 27. gxh5 {[%clk 0:00:32]}  Qxh5 {[%clk 0:00:07]} 28. Bg3 {[%clk 0:00:32]}  Qxf3 {[%clk 0:00:06]} 29. Nxg5 {[%clk 0:00:31]}  Qg4 {[%clk 0:00:04]} 30. Ne4 {[%clk 0:00:24]}  Rfd8 {[%clk 0:00:02]} 31. Qe3 {[%clk 0:00:23]}  Ne5 {[%clk 0:00:01]} 32. Kg2 {[%clk 0:00:22]} 1-0

[Event "January 9 Early 2024"]
[Site "https://www.chess.com"]
[Date "2024.01.11"]
[Round "9"]
[White "Rose, Felix"]
[Black "Sava, Ana-Maria"]
[Result "1-0"]
[Board "105"]
[TimeControl "180+1"]
[WhiteFideId "5105722"]
[BlackFideId "1213504"]
[WhiteElo "2243"]
[BlackElo "1835"]
[WhiteTeam "MEX"]
[BlackTeam "ROU"]
[WhiteClock "0:00:36"]
[BlackClock "0:00:40"]

1. e4 {[%clk 0:02:59]}  e5 {[%clk 0:02:38]} 2. Nf3 {[%clk 0:02:59]}  Nf6 {[%clk 0:02:37]} 3. Nxe5 {[%clk 0:02:59]}  Qe7 {[%clk 0:02:37]} 4. d4 {[%clk 0:02:59]}  d6 {[%clk 0:02:36]} 5. Nf3 {[%clk 0:02:56]}  Qxe4+ {[%clk 0:02:36]} 6. Be2 {[%clk 0:02:55]}  Bg4 {[%clk 0:02:33]} 7. O-O {[%clk 0:02:54]}  Be7 {[%clk 0:02:32]} 8. Nc3 {[%clk 0:02:48]}  Qg6 {[%clk 0:02:30]} 9. Bd3 {[%clk 0:02:30]}  Qh5 {[%clk 0:02:28]} 10. Be2 {[%clk 0:01:57]}  Nbd7 {[%clk 0:02:25]} 11. h3 {[%clk 0:01:53]}  Bxh3 {[%clk 0:02:17]} 12. gxh3 {[%clk 0:01:53]}  Qxh3 {[%clk 0:02:17]} 13. Nh2 {[%clk 0:01:46]}  h5 {[%clk 0:02:11]} 14. Qd3 {[%clk 0:01:26]}  Qxd3 {[%clk 0:01:59]} 15. Bxd3 {[%clk 0:01:26]}  O-O-O {[%clk 0:01:59]} 16. Re1 {[%clk 0:01:22]}  Bf8 {[%clk 0:01:53]} 17. Bg5 {[%clk 0:01:18]}  Re8 {[%clk 0:01:48]} 18. Bf5 {[%clk 0:01:14]}  Rxe1+ {[%clk 0:01:45]} 19. Rxe1 {[%clk 0:01:13]}  Kd8 {[%clk 0:01:38]} 20. Nd5 {[%clk 0:01:10]}  c6 {[%clk 0:01:33]} 21. Bxd7 {[%clk 0:01:07]}  Kxd7 {[%clk 0:01:32]} 22. Nxf6+ {[%clk 0:01:04]}  gxf6 {[%clk 0:01:31]} 23. Bxf6 {[%clk 0:01:04]}  Rg8+ {[%clk 0:01:31]} 24. Kh1 {[%clk 0:01:03]}  Rg6 {[%clk 0:01:30]} 25. Bh4 {[%clk 0:01:01]}  Bg7 {[%clk 0:01:26]} 26. c3 {[%clk 0:01:01]}  Re6 {[%clk 0:01:23]} 27. Rxe6 {[%clk 0:00:58]}  fxe6 {[%clk 0:01:23]} 28. f4 {[%clk 0:00:57]}  b6 {[%clk 0:01:18]} 29. Nf3 {[%clk 0:00:57]}  c5 {[%clk 0:01:17]} 30. Kg2 {[%clk 0:00:56]}  d5 {[%clk 0:01:12]} 31. Ne5+ {[%clk 0:00:55]}  Kd6 {[%clk 0:01:12]} 32. Kf3 {[%clk 0:00:51]}  cxd4 {[%clk 0:01:11]} 33. cxd4 {[%clk 0:00:52]}  a6 {[%clk 0:01:08]} 34. Be1 {[%clk 0:00:52]}  Bf6 {[%clk 0:01:06]} 35. Bb4+ {[%clk 0:00:51]}  Kc7 {[%clk 0:01:01]} 36. Nf7 {[%clk 0:00:46]}  Bxd4 {[%clk 0:01:00]} 37. b3 {[%clk 0:00:44]}  a5 {[%clk 0:00:58]} 38. Bd6+ {[%clk 0:00:44]}  Kc6 {[%clk 0:00:58]} 39. Be5 {[%clk 0:00:42]}  Bc5 {[%clk 0:00:53]} 40. Ng5 {[%clk 0:00:41]}  Be7 {[%clk 0:00:52]} 41. Nxe6 {[%clk 0:00:41]}  b5 {[%clk 0:00:50]} 42. Nd4+ {[%clk 0:00:40]}  Kc5 {[%clk 0:00:50]} 43. f5 {[%clk 0:00:38]}  a4 {[%clk 0:00:46]} 44. f6 {[%clk 0:00:37]}  Bf8 {[%clk 0:00:44]} 45. f7 {[%clk 0:00:36]}  axb3 {[%clk 0:00:40]} 46. axb3 {[%clk 0:00:36]} 1-0

[Event "January 9 Early 2024"]
[Site "https://www.chess.com"]
[Date "2024.01.11"]
[Round "9"]
[White "Kjartansson, David"]
[Black "Demin, Vladimir"]
[Result "0-1"]
[Board "106"]
[TimeControl "180+1"]
[WhiteFideId "2301130"]
[BlackFideId "4167457"]
[WhiteElo "2427"]
[BlackElo "2578"]
[WhiteTeam "ISL"]
[BlackTeam "RUS"]
[WhiteClock "0:00:14"]
[BlackClock "0:00:50"]

1. e4 {[%clk 0:02:57]}  e5 {[%clk 0:02:57]} 2. Nf3 {[%clk 0:02:56]}  Nc6 {[%clk 0:02:57]} 3. d4 {[%clk 0:02:56]}  exd4 {[%clk 0:02:56]} 4. Nxd4 {[%clk 0:02:57]}  Nf6 {[%clk 0:02:56]} 5. Nxc6 {[%clk 0:02:56]}  bxc6 {[%clk 0:02:57]} 6. e5 {[%clk 0:02:57]}  Qe7 {[%clk 0:02:56]} 7. Qe2 {[%clk 0:02:57]}  Nd5 {[%clk 0:02:57]} 8. h4 {[%clk 0:02:53]}  d6 {[%clk 0:02:55]} 9. c4 {[%clk 0:02:49]}  Nb6 {[%clk 0:02:52]} 10. exd6 {[%clk 0:02:48]}  cxd6 {[%clk 0:02:53]} 11. b3 {[%clk 0:02:45]}  d5 {[%clk 0:02:48]} 12. cxd5 {[%clk 0:02:21]}  Nxd5 {[%clk 0:02:41]} 13. Bb2 {[%clk 0:02:15]}  Qxe2+ {[%clk 0:02:35]} 14. Bxe2 {[%clk 0:02:14]}  Bb4+ {[%clk 0:02:35]} 15. Kf1 {[%clk 0:02:12]}  O-O {[%clk 0:02:32]} 16. Na3 {[%clk 0:02:08]}  a5 {[%clk 0:02:20]} 17. Nc4 {[%clk 0:02:05]}  a4 {[%clk 0:02:12]} 18. h5 {[%clk 0:01:34]}  a3 {[%clk 0:02:08]} 19. Bd4 {[%clk 0:01:29]}  c5 {[%clk 0:02:06]} 20. Be5 {[%clk 0:01:29]}  Re8 {[%clk 0:02:04]} 21. Bf3 {[%clk 0:01:26]}  Bb7 {[%clk 0:01:56]} 22. Rd1 {[%clk 0:01:24]}  Rad8 {[%clk 0:01:53]} 23. Rh4 {[%clk 0:01:21]}  f6 {[%clk 0:01:51]} 24. Bd6 {[%clk 0:01:12]}  Nc3 {[%clk 0:01:45]} 25. Rd3 {[%clk 0:00:49]}  Bxf3 {[%clk 0:01:36]} 26. gxf3 {[%clk 0:00:46]}  Nxa2 {[%clk 0:01:35]} 27. Kg2 {[%clk 0:00:41]}  Nc1 {[%clk 0:01:35]} 28. Rd1 {[%clk 0:00:40]}  Nxb3 {[%clk 0:01:35]} 29. Ne3 {[%clk 0:00:32]}  a2 {[%clk 0:01:31]} 30. Nc2 {[%clk 0:00:33]}  a1=Q {[%clk 0:01:21]} 31. Nxa1 {[%clk 0:00:33]}  Nxa1 {[%clk 0:01:21]} 32. Rxa1 {[%clk 0:00:27]}  Rxd6 {[%clk 0:01:20]} 33. Ra7 {[%clk 0:00:28]}  Rd4 {[%clk 0:01:16]} 34. f4 {[%clk 0:00:28]}  c4 {[%clk 0:01:14]} 35. h6 {[%clk 0:00:25]}  g5 {[%clk 0:00:56]} 36. Rg7+ {[%clk 0:00:20]}  Kh8 {[%clk 0:00:56]} 37. Rh1 {[%clk 0:00:18]}  Re7 {[%clk 0:00:53]} 38. Rxe7 {[%clk 0:00:15]}  Bxe7 {[%clk 0:00:53]} 39. Re1 {[%clk 0:00:16]}  Rd7 {[%clk 0:00:52]} 40. fxg5 {[%clk 0:00:16]}  fxg5 {[%clk 0:00:52]} 41. Re6 {[%clk 0:00:17]}  Rc7 {[%clk 0:00:51]} 42. Kf1 {[%clk 0:00:15]}  c3 {[%clk 0:00:51]} 43. Ra6 {[%clk 0:00:16]}  Kg8 {[%clk 0:00:50]} 44. Ke2 {[%clk 0:00:15]}  c2 {[%clk 0:00:50]} 45. Ra8+ {[%clk 0:00:14]}  Kf7 {[%clk 0:00:50]} 0-1

[Event "January 9 Early 2024"]
[Site "https://www.chess.com"]
[Date "2024.01.11"]
[Round "9"]
[White "Zemlyanskii, Ivan"]
[Black "Rustemov, Alexander"]
[Result "1/2-1/2"]
[Board "107"]
[TimeControl "180+1"]
[WhiteFideId "24249971"]
[BlackFideId "4119002"]
[WhiteElo "2978"]
[BlackElo "2820"]
[WhiteTeam "RUS"]
[BlackTeam "RUS"]
[WhiteClock "0:00:11"]
[BlackClock "0:00:41"]

1. d4 {[%clk 0:02:59]}  d5 {[%clk 0:02:58]} 2. c4 {[%clk 0:02:59]}  c6 {[%clk 0:02:54]} 3. Nf3 {[%clk 0:02:59]}  Nf6 {[%clk 0:02:54]} 4. e3 {[%clk 0:02:59]}  Bg4 {[%clk 0:02:52]} 5. h3 {[%clk 0:02:54]}  Bxf3 {[%clk 0:02:50]} 6. Qxf3 {[%clk 0:02:54]}  e6 {[%clk 0:02:50]} 7. Nc3 {[%clk 0:02:54]}  Nbd7 {[%clk 0:02:49]} 8. Bd2 {[%clk 0:02:54]}  Bb4 {[%clk 0:02:47]} 9. Bd3 {[%clk 0:02:51]}  a5 {[%clk 0:02:46]} 10. O-O {[%clk 0:02:49]}  O-O {[%clk 0:02:46]} 11. Rad1 {[%clk 0:02:44]}  Qe7 {[%clk 0:02:44]} 12. Rfe1 {[%clk 0:02:25]}  Rfe8 {[%clk 0:02:42]} 13. a3 {[%clk 0:02:16]}  Bd6 {[%clk 0:02:41]} 14. e4 {[%clk 0:02:06]}  dxe4 {[%clk 0:02:41]} 15. Nxe4 {[%clk 0:02:06]}  Nxe4 {[%clk 0:02:40]} 16. Bxe4 {[%clk 0:02:07]}  Nf6 {[%clk 0:02:29]} 17. Bg5 {[%clk 0:01:44]}  h6 {[%clk 0:02:29]} 18. Bh4 {[%clk 0:01:43]}  Qd8 {[%clk 0:02:15]} 19. d5 {[%clk 0:01:23]}  exd5 {[%clk 0:02:10]} 20. cxd5 {[%clk 0:01:20]}  c5 {[%clk 0:02:08]} 21. Bxf6 {[%clk 0:00:51]}  Qxf6 {[%clk 0:02:08]} 22. Qxf6 {[%clk 0:00:49]}  gxf6 {[%clk 0:02:09]} 23. a4 {[%clk 0:00:50]}  c4 {[%clk 0:02:04]} 24. Bf5 {[%clk 0:00:45]}  Rxe1+ {[%clk 0:02:00]} 25. Rxe1 {[%clk 0:00:46]}  Be5 {[%clk 0:01:48]} 26. Rc1 {[%clk 0:00:44]}  Rd8 {[%clk 0:01:30]} 27. Rxc4 {[%clk 0:00:25]}  Rxd5 {[%clk 0:01:30]} 28. Bc2 {[%clk 0:00:24]}  Rd4 {[%clk 0:01:13]} 29. Rxd4 {[%clk 0:00:18]}  Bxd4 {[%clk 0:01:14]} 30. b3 {[%clk 0:00:18]}  b6 {[%clk 0:01:13]} 31. Bd3 {[%clk 0:00:18]}  Kf8 {[%clk 0:01:06]} 32. g3 {[%clk 0:00:19]}  Ke7 {[%clk 0:01:04]} 33. Kg2 {[%clk 0:00:18]}  Bc5 {[%clk 0:01:04]} 34. f4 {[%clk 0:00:18]}  Bb4 {[%clk 0:01:00]} 35. Kf3 {[%clk 0:00:18]}  Be1 {[%clk 0:00:59]} 36. g4 {[%clk 0:00:14]}  Bb4 {[%clk 0:00:56]} 37. Ke4 {[%clk 0:00:15]}  Bc5 {[%clk 0:00:54]} 38. h4 {[%clk 0:00:14]}  Bg1 {[%clk 0:00:53]} 39. h5 {[%clk 0:00:15]}  Kf8 {[%clk 0:00:52]} 40. Kf5 {[%clk 0:00:13]}  Kg7 {[%clk 0:00:50]} 41. g5 {[%clk 0:00:12]}  fxg5 {[%clk 0:00:49]} 42. fxg5 {[%clk 0:00:13]}  hxg5 {[%clk 0:00:47]} 43. Kxg5 {[%clk 0:00:14]}  Be3+ {[%clk 0:00:47]} 44. Kf5 {[%clk 0:00:14]}  Kh6 {[%clk 0:00:45]} 45. Be2 {[%clk 0:00:13]}  Bd4 {[%clk 0:00:43]} 46. Ke4 {[%clk 0:00:14]}  Bg1 {[%clk 0:00:42]} 47. Kf5 {[%clk 0:00:12]}  Bd4 {[%clk 0:00:42]} 48. Bc4 {[%clk 0:00:12]}  Kg7 {[%clk 0:00:41]} 49. h6+ {[%clk 0:00:11]} 1/2-1/2

[Event "January 9 Early 2024"]
[Site "https://www.chess.com"]
[Date "2024.01.11"]
[Round "9"]
[White "Domingo Nunez, Alejandro"]
[Black "Dinu, Dumitru-Daniel"]
[Result "1-0"]
[Board "108"]
[TimeControl "180+1"]
[WhiteFideId "22245561"]
[BlackFideId "1208403"]
[WhiteElo "2678"]
[BlackElo "2491"]
[WhiteTeam "ESP"]
[BlackTeam "ROU"]
[WhiteClock "0:00:18"]
[BlackClock "0:00:01"]

1. Nf3 {[%clk 0:02:30]}  Nf6 {[%clk 0:02:58]} 2. g3 {[%clk 0:02:29]}  e6 {[%clk 0:02:57]} 3. Bg2 {[%clk 0:02:29]}  d5 {[%clk 0:02:58]} 4. O-O {[%clk 0:02:30]}  c5 {[%clk 0:02:58]} 5. d4 {[%clk 0:02:30]}  cxd4 {[%clk 0:02:56]} 6. Nxd4 {[%clk 0:02:31]}  e5 {[%clk 0:02:53]} 7. Nb3 {[%clk 0:02:30]}  Be6 {[%clk 0:02:50]} 8. Nc3 {[%clk 0:02:23]}  Be7 {[%clk 0:02:46]} 9. Bg5 {[%clk 0:02:23]}  Nbd7 {[%clk 0:02:32]} 10. f4 {[%clk 0:01:50]}  exf4 {[%clk 0:02:04]} 11. gxf4 {[%clk 0:01:46]}  Qb6+ {[%clk 0:01:39]} 12. Kh1 {[%clk 0:01:45]}  Ng4 {[%clk 0:01:38]} 13. Bxe7 {[%clk 0:01:45]}  Ne3 {[%clk 0:01:16]} 14. Qd3 {[%clk 0:01:40]}  Kxe7 {[%clk 0:00:55]} 15. Na4 {[%clk 0:01:14]}  Bf5 {[%clk 0:00:20]} 16. Nxb6 {[%clk 0:01:01]}  Bxd3 {[%clk 0:00:20]} 17. exd3 {[%clk 0:00:31]}  Nxg2 {[%clk 0:00:04]} 18. Nxa8 {[%clk 0:00:28]}  Nh4 {[%clk 0:00:04]} 19. Nc7 {[%clk 0:00:27]}  Kd6 {[%clk 0:00:04]} 20. Nb5+ {[%clk 0:00:26]}  Kc6 {[%clk 0:00:05]} 21. N5d4+ {[%clk 0:00:26]}  Kd6 {[%clk 0:00:04]} 22. Rae1 {[%clk 0:00:27]}  Nf6 {[%clk 0:00:05]} 23. c4 {[%clk 0:00:25]}  Ng4 {[%clk 0:00:03]} 24. c5+ {[%clk 0:00:25]}  Kd7 {[%clk 0:00:03]} 25. f5 {[%clk 0:00:22]}  f6 {[%clk 0:00:03]} 26. Rf4 {[%clk 0:00:22]}  h5 {[%clk 0:00:03]} 27. h3 {[%clk 0:00:22]}  g5 {[%clk 0:00:04]} 28. fxg6 {[%clk 0:00:21]}  Nxg6 {[%clk 0:00:04]} 29. Rf5 {[%clk 0:00:21]}  Nh4 {[%clk 0:00:02]} 30. Rff1 {[%clk 0:00:19]}  Nh6 {[%clk 0:00:01]} 31. Rxf6 {[%clk 0:00:19]}  N4f5 {[%clk 0:00:01]} 32. c6+ {[%clk 0:00:19]}  bxc6 {[%clk 0:00:01]} 33. Nc5+ {[%clk 0:00:20]}  Kc7 {[%clk 0:00:01]} 34. Rxc6+ {[%clk 0:00:20]}  Kb8 {[%clk 0:00:01]} 35. Ree6 {[%clk 0:00:18]}  Nxd4 {[%clk 0:00:01]} 36. Rxh6 {[%clk 0:00:18]} 1-0

[Event "January 9 Early 2024"]
[Site "https://www.chess.com"]
[Date "2024.01.11"]
[Round "9"]
[White "Dyachuk, Artem"]
[Black "Kuhn, Clement"]
[Result "0-1"]
[Board "109"]
[TimeControl "180+1"]
[WhiteFideId "34107924"]
[BlackFideId "36099775"]
[WhiteElo "2696"]
[BlackElo "2593"]
[WhiteTeam "UKR"]
[BlackTeam "FRA"]
[WhiteClock "0:00:02"]
[BlackClock "0:00:37"]

1. e4 {[%clk 0:03:00]}  e6 {[%clk 0:02:59]} 2. d4 {[%clk 0:03:00]}  d5 {[%clk 0:02:59]} 3. Nc3 {[%clk 0:02:58]}  Nf6 {[%clk 0:02:59]} 4. e5 {[%clk 0:02:58]}  Nfd7 {[%clk 0:02:59]} 5. Nce2 {[%clk 0:02:57]}  c5 {[%clk 0:02:59]} 6. c3 {[%clk 0:02:57]}  Nc6 {[%clk 0:03:00]} 7. Nf3 {[%clk 0:02:58]}  f6 {[%clk 0:02:59]} 8. Nf4 {[%clk 0:02:57]}  Nb6 {[%clk 0:02:55]} 9. Bd3 {[%clk 0:02:56]}  cxd4 {[%clk 0:02:53]} 10. cxd4 {[%clk 0:02:57]}  Bb4+ {[%clk 0:02:53]} 11. Bd2 {[%clk 0:02:54]}  Bxd2+ {[%clk 0:02:53]} 12. Qxd2 {[%clk 0:02:55]}  O-O {[%clk 0:02:52]} 13. h4 {[%clk 0:02:50]}  fxe5 {[%clk 0:02:50]} 14. dxe5 {[%clk 0:02:42]}  Nc4 {[%clk 0:02:43]} 15. Bxh7+ {[%clk 0:02:31]}  Kxh7 {[%clk 0:02:38]} 16. Ng5+ {[%clk 0:02:26]}  Kg8 {[%clk 0:02:26]} 17. Qd3 {[%clk 0:02:25]}  Qa5+ {[%clk 0:02:16]} 18. Kf1 {[%clk 0:02:24]}  Rxf4 {[%clk 0:01:45]} 19. Qh7+ {[%clk 0:02:18]}  Kf8 {[%clk 0:01:45]} 20. Qh8+ {[%clk 0:02:17]}  Ke7 {[%clk 0:01:45]} 21. Qxg7+ {[%clk 0:02:17]}  Kd8 {[%clk 0:01:44]} 22. Nf7+ {[%clk 0:02:04]}  Kc7 {[%clk 0:01:42]} 23. Nd8+ {[%clk 0:01:51]}  Kb6 {[%clk 0:01:23]} 24. Nxc6 {[%clk 0:01:39]}  bxc6 {[%clk 0:01:24]} 25. h5 {[%clk 0:01:28]}  Qd2 {[%clk 0:01:21]} 26. Qg3 {[%clk 0:01:22]}  Ba6 {[%clk 0:01:21]} 27. Kg1 {[%clk 0:01:19]}  Rg8 {[%clk 0:01:15]} 28. Qb3+ {[%clk 0:01:03]}  Bb5 {[%clk 0:01:14]} 29. Rf1 {[%clk 0:00:50]}  Nxe5 {[%clk 0:01:04]} 30. Rh3 {[%clk 0:00:19]}  Rfg4 {[%clk 0:00:57]} 31. Rg3 {[%clk 0:00:12]}  Rxg3 {[%clk 0:00:55]} 32. fxg3 {[%clk 0:00:13]}  Qd4+ {[%clk 0:00:54]} 33. Kh1 {[%clk 0:00:11]}  Ng4 {[%clk 0:00:52]} 34. Rf4 {[%clk 0:00:08]}  Qe3 {[%clk 0:00:42]} 35. Qxe3+ {[%clk 0:00:02]}  Nxe3 {[%clk 0:00:43]} 36. Rf6 {[%clk 0:00:02]}  e5 {[%clk 0:00:40]} 37. h6 {[%clk 0:00:01]}  e4 {[%clk 0:00:40]} 38. h7 {[%clk 0:00:01]}  Rh8 {[%clk 0:00:40]} 39. Rf7 {[%clk 0:00:01]}  Ng4 {[%clk 0:00:39]} 40. Rg7 {[%clk 0:00:02]}  e3 {[%clk 0:00:39]} 41. Kg1 {[%clk 0:00:02]}  e2 {[%clk 0:00:39]} 42. Re7 {[%clk 0:00:02]}  Rxh7 {[%clk 0:00:37]} 0-1

[Event "January 9 Early 2024"]
[Site "https://www.chess.com"]
[Date "2024.01.11"]
[Round "9"]
[White "Manukian, Artak"]
[Black "Souleidis, Georgios"]
[Result "1-0"]
[Board "111"]
[TimeControl "180+1"]
[WhiteFideId "13301373"]
[BlackFideId "4206827"]
[WhiteElo "2524"]
[BlackElo "2624"]
[WhiteTeam "ARM"]
[BlackTeam "GRE"]
[WhiteClock "0:00:26"]
[BlackClock "0:00:04"]

1. e4 {[%clk 0:03:00]}  c5 {[%clk 0:02:58]} 2. Nf3 {[%clk 0:02:58]}  e6 {[%clk 0:02:58]} 3. c3 {[%clk 0:02:57]}  d5 {[%clk 0:02:58]} 4. e5 {[%clk 0:02:54]}  d4 {[%clk 0:02:58]} 5. cxd4 {[%clk 0:02:53]}  cxd4 {[%clk 0:02:58]} 6. Bb5+ {[%clk 0:02:54]}  Nc6 {[%clk 0:02:52]} 7. Bxc6+ {[%clk 0:02:53]}  bxc6 {[%clk 0:02:52]} 8. Qa4 {[%clk 0:02:54]}  Ne7 {[%clk 0:02:31]} 9. Nxd4 {[%clk 0:02:53]}  Bd7 {[%clk 0:02:18]} 10. Nb3 {[%clk 0:02:52]}  c5 {[%clk 0:02:01]} 11. Qa5 {[%clk 0:02:46]}  Qxa5 {[%clk 0:01:51]} 12. Nxa5 {[%clk 0:02:44]}  Nd5 {[%clk 0:01:52]} 13. Nc3 {[%clk 0:02:40]}  Nf4 {[%clk 0:01:47]} 14. O-O {[%clk 0:02:39]}  Nd3 {[%clk 0:01:46]} 15. f4 {[%clk 0:02:30]}  g5 {[%clk 0:01:36]} 16. fxg5 {[%clk 0:02:21]}  Bg7 {[%clk 0:01:30]} 17. Ne4 {[%clk 0:02:09]}  Bxe5 {[%clk 0:01:28]} 18. Nf6+ {[%clk 0:02:05]}  Ke7 {[%clk 0:01:22]} 19. Nxd7 {[%clk 0:02:02]}  Kxd7 {[%clk 0:01:23]} 20. Rxf7+ {[%clk 0:02:01]}  Kd6 {[%clk 0:01:23]} 21. Nc4+ {[%clk 0:01:57]}  Kd5 {[%clk 0:01:23]} 22. Nxe5 {[%clk 0:01:44]}  Nxe5 {[%clk 0:01:24]} 23. Rf6 {[%clk 0:01:33]}  Rhg8 {[%clk 0:01:16]} 24. h4 {[%clk 0:01:31]}  Rg6 {[%clk 0:00:49]} 25. b3 {[%clk 0:01:22]}  Nd3 {[%clk 0:00:34]} 26. Ba3 {[%clk 0:01:13]}  Rag8 {[%clk 0:00:15]} 27. Raf1 {[%clk 0:01:05]}  h6 {[%clk 0:00:09]} 28. Rxg6 {[%clk 0:00:59]}  Rxg6 {[%clk 0:00:09]} 29. Rf6 {[%clk 0:00:59]}  Rxf6 {[%clk 0:00:10]} 30. gxf6 {[%clk 0:01:00]}  Ne5 {[%clk 0:00:09]} 31. Bb2 {[%clk 0:00:45]}  Nf7 {[%clk 0:00:08]} 32. g4 {[%clk 0:00:43]}  e5 {[%clk 0:00:08]} 33. Kf2 {[%clk 0:00:39]}  Ke6 {[%clk 0:00:08]} 34. Ba3 {[%clk 0:00:35]}  Kxf6 {[%clk 0:00:02]} 35. Bxc5 {[%clk 0:00:34]}  a6 {[%clk 0:00:03]} 36. a4 {[%clk 0:00:32]}  Ke6 {[%clk 0:00:04]} 37. Be3 {[%clk 0:00:31]}  e4 {[%clk 0:00:04]} 38. b4 {[%clk 0:00:30]}  Ne5 {[%clk 0:00:03]} 39. Kg3 {[%clk 0:00:26]}  Nf7 {[%clk 0:00:03]} 40. b5 {[%clk 0:00:26]}  Kd5 {[%clk 0:00:04]} 41. bxa6 {[%clk 0:00:26]} 1-0